fUSD/lending_fUSD_20260628
["ID","MTS","AMOUNT","RATE_DAILY","PERIOD"]
[426565584,1782595059000,573.98562931,0.0003729,120]
[426565583,1782595059000,573.84959331,0.0003729,120]
[426565582,1782595059000,500.0,0.0003729,120]
[426565585,1782595060000,500.0,0.0003729,120]
[426565586,1782595061000,160.28491027,0.0003729,120]
[426565587,1782595062000,500.0,0.0003729,120]
[426565590,1782595063000,500.0,0.0003729,120]
[426565589,1782595063000,500.0,0.0003729,120]
[426565588,1782595063000,515.43953053,0.0003729,120]
[426565591,1782595064000,530.60939232,0.0003729,120]
[426565593,1782595064000,500.0,0.0003729,120]
[426565594,1782595064000,537.69896413,0.0003729,120]
[426565592,1782595064000,500.0,0.0003729,120]
[426565595,1782595067000,500.0,0.0003729,120]
[426565600,1782595068000,500.0,0.0003729,120]
[426565598,1782595068000,511.61,0.0003729,120]
[426565599,1782595068000,520.03155501,0.0003729,120]
[426565597,1782595068000,500.0,0.0003729,120]
[426565596,1782595068000,500.0,0.0003729,120]
[426565602,1782595069000,500.0,0.0003729,120]
[426565601,1782595069000,500.0,0.0003729,120]
[426565604,1782595069000,505.02969181,0.0003729,120]
[426565603,1782595069000,500.0,0.0003729,120]
[426565605,1782595071000,612.16142887,0.0003729,120]
[426565607,1782595072000,500.0,0.0003729,120]
[426565606,1782595072000,500.0,0.0003729,120]
[426565608,1782595073000,528.56837796,0.0003729,120]
[426565609,1782595074000,615.25162956,0.0003729,120]
[426565613,1782595075000,500.0,0.0003729,120]
[426565612,1782595075000,500.0,0.0003729,120]
[426565611,1782595075000,500.0,0.0003729,120]
[426565610,1782595075000,500.0,0.0003729,120]
[426565614,1782595076000,500.0,0.0003729,120]
[426565615,1782595076000,511.40413698,0.0003729,120]
[426565617,1782595076000,517.75049088,0.0003729,120]
[426565616,1782595076000,500.0,0.0003729,120]
[426565618,1782595079000,476.41052684,0.0003729,120]
[426565619,1782595080000,500.0,0.00037288,120]
[426565624,1782595081000,1681.23,0.00037288,120]
[426565623,1782595081000,518.40739493,0.00037288,120]
[426565622,1782595081000,1681.23,0.00037288,120]
[426565621,1782595081000,500.0,0.00037288,120]
[426565620,1782595081000,500.0,0.00037288,120]
[426565627,1782595082000,1681.23,0.00037288,120]
[426565626,1782595082000,1681.23,0.00037288,120]
[426565625,1782595082000,1681.23,0.00037288,120]
[426565628,1782595083000,1681.23,0.00037288,120]
[426565630,1782595083000,1681.23,0.00037288,120]
[426565629,1782595083000,1681.23,0.00037288,120]
[426565635,1782595084000,558.73112165,0.00037288,120]
[426565634,1782595084000,1681.23,0.00037288,120]
[426565633,1782595084000,500.0,0.00037288,120]
[426565632,1782595084000,1681.23,0.00037288,120]
[426565631,1782595084000,1681.23,0.00037288,120]
[426565636,1782595085000,1681.23,0.00037288,120]
[426565637,1782595086000,1681.23,0.00037288,120]
[426565638,1782595086000,500.0,0.00037288,120]
[426565639,1782595086000,1681.23,0.00037288,120]
[426565641,1782595086000,1681.23,0.00037288,120]
[426565640,1782595086000,500.0,0.00037288,120]
[426565642,1782595086000,500.0,0.00037288,120]
[426565643,1782595087000,1681.23,0.00037288,120]
[426565644,1782595087000,500.0,0.00037288,120]
[426565645,1782595087000,1681.23,0.00037288,120]
[426565649,1782595087000,1681.23,0.00037288,120]
[426565647,1782595087000,1681.23,0.00037288,120]
[426565648,1782595087000,562.7129635,0.00037288,120]
[426565646,1782595087000,500.0,0.00037288,120]
[426565652,1782595088000,1681.23,0.00037288,120]
[426565651,1782595088000,1681.23,0.00037288,120]
[426565650,1782595088000,1681.23,0.00037288,120]
[426565654,1782595089000,1681.27594437,0.00037288,120]
[426565653,1782595089000,1681.23,0.00037288,120]
[426565655,1782595090000,407.65505932,0.00037288,120]
[426565656,1782595093000,500.0,0.00037288,120]
[426565658,1782595095000,500.0,0.00037288,120]
[426565657,1782595095000,500.0,0.00037288,120]
[426565662,1782595096000,537.98750132,0.00037288,120]
[426565661,1782595096000,500.0,0.00037288,120]
[426565660,1782595096000,500.0,0.00037288,120]
[426565659,1782595096000,541.44250473,0.00037288,120]
[426565663,1782595098000,569.4362228,0.00037288,120]
[426565664,1782595099000,534.77844562,0.00037288,120]
[426565665,1782595099000,500.0,0.00037288,120]
[426565666,1782595100000,500.0,0.00037288,120]
[426565668,1782595100000,500.0,0.00037288,120]
[426565667,1782595100000,500.0,0.00037288,120]
[426565671,1782595101000,163.01616382,0.00037288,120]
[426565670,1782595101000,500.0,0.00037288,120]
[426565669,1782595101000,500.0,0.00037288,120]
[426565674,1782595104000,500.0,0.00037288,120]
[426565673,1782595104000,500.0,0.00037288,120]
[426565672,1782595104000,500.0,0.00037288,120]
[426565675,1782595105000,500.0,0.00037288,120]
[426565676,1782595105000,500.0,0.00037288,120]
[426565677,1782595105000,500.0,0.00037288,120]
[426565680,1782595105000,500.0,0.00037288,120]
[426565681,1782595105000,500.0,0.00037288,120]
[426565678,1782595105000,500.0,0.00037288,120]
[426565679,1782595105000,500.0,0.00037288,120]
[426565684,1782595106000,231.9302097,0.00037288,120]
[426565683,1782595106000,564.54437571,0.00037288,120]
[426565682,1782595106000,500.0,0.00037288,120]
[426565686,1782595109000,500.0,0.00037288,120]
[426565685,1782595109000,500.0,0.00037288,120]
[426565687,1782595110000,500.0,0.00037288,120]
[426565688,1782595110000,500.0,0.00037288,120]
[426565689,1782595111000,514.62264859,0.00037288,120]
[426565691,1782595114000,535.87994664,0.00037288,120]
[426565690,1782595114000,500.0,0.00037288,120]
[426565692,1782595114000,528.27062087,0.00037288,120]
[426565694,1782595115000,500.0,0.00037288,120]
[426565693,1782595115000,500.0,0.00037288,120]
[426565697,1782595116000,500.0,0.00037288,120]
[426565696,1782595116000,500.0,0.00037288,120]
[426565695,1782595116000,500.0,0.00037288,120]
[426565699,1782595117000,500.0,0.00037288,120]
[426565698,1782595117000,500.0,0.00037288,120]
[426565701,1782595117000,205.25169679,0.00037288,120]
[426565700,1782595117000,642.93743727,0.00037288,120]
[426565702,1782595118000,272.19377265,0.00037288,120]
[426565704,1782595122000,595.37781242,0.00037288,120]
[426565703,1782595122000,500.0,0.00037288,120]
[426565705,1782595126000,500.0,0.00037288,120]
[426565709,1782595127000,500.0,0.00037288,120]
[426565708,1782595127000,500.0,0.00037288,120]
[426565707,1782595127000,500.0,0.00037288,120]
[426565706,1782595127000,500.0,0.00037288,120]
[426565710,1782595128000,500.0,0.00037288,120]
[426565712,1782595128000,500.0,0.00037288,120]
[426565711,1782595128000,500.0,0.00037288,120]
[426565714,1782595128000,582.55830514,0.00037288,120]
[426565715,1782595128000,500.0,0.00037288,120]
[426565713,1782595128000,500.0,0.00037288,120]
[426565716,1782595131000,500.0,0.00037288,120]
[426565717,1782595133000,500.0,0.00037288,120]
[426565720,1782595134000,500.0,0.00037288,120]
[426565719,1782595134000,500.0,0.00037288,120]
[426565718,1782595134000,500.0,0.00037288,120]
[426565724,1782595135000,529.57313084,0.00037288,120]
[426565723,1782595135000,500.0,0.00037288,120]
[426565722,1782595135000,500.0,0.00037288,120]
[426565721,1782595135000,500.0,0.00037288,120]
[426565726,1782595139000,536.2196198,0.00037288,120]
[426565727,1782595145000,560.45581258,0.00037288,120]
[426565728,1782595147000,357.022282,0.00037288,120]
[426565730,1782595151000,500.0,0.00037288,120]
[426565729,1782595151000,500.0,0.00037288,120]
[426565733,1782595152000,-334.37967431,0.00014724,2]
[426565732,1782595152000,500.0,0.00037288,120]
[426565731,1782595152000,500.0,0.00037288,120]
[426565734,1782595165000,578.27976372,0.00037288,120]
[426565735,1782595168000,539.07807444,0.00037288,120]
[426565737,1782595174000,577.35566315,0.00037288,120]
[426565736,1782595174000,500.0,0.00037288,120]
[426565738,1782595179000,166.66,0.0002213,30]
[426565739,1782595179000,166.66,0.00022596,30]
[426565741,1782595180000,646.34,0.00037288,120]
[426565740,1782595180000,646.34,0.00037288,120]
[426565742,1782595181000,646.33,0.00037288,120]
[426565744,1782595181000,646.33,0.00037288,120]
[426565743,1782595181000,646.33,0.00037288,120]
[426565745,1782595208000,602.58770443,0.00037288,120]
[426565746,1782595210000,507.78333306,0.00037288,120]
[426565748,1782595219000,534.34807454,0.00037288,120]
[426565750,1782595223000,578.51355433,0.00037288,120]
[426565754,1782595231000,500.0,0.00037288,120]
[426565753,1782595231000,500.0,0.00037288,120]
[426565755,1782595232000,500.0,0.00037288,120]
[426565756,1782595232000,500.0,0.00037288,120]
[426565757,1782595232000,500.0,0.00037288,120]
[426565758,1782595232000,500.0,0.00037288,120]
[426565761,1782595233000,500.0,0.00037288,120]
[426565760,1782595233000,500.0,0.00037288,120]
[426565759,1782595233000,500.0,0.00037288,120]
[426565762,1782595234000,465.16538167,0.00037288,120]
[426565764,1782595236000,192.03851934,0.00037288,120]
[426565765,1782595238000,577.38878384,0.00037288,120]
[426565766,1782595242000,500.0,0.00037288,120]
[426565768,1782595242000,500.0,0.00037288,120]
[426565767,1782595242000,500.0,0.00037288,120]
[426565769,1782595243000,505.26848104,0.00037288,120]
[426565771,1782595246000,500.0,0.00037288,120]
[426565770,1782595246000,500.0,0.00037288,120]
[426565773,1782595247000,471.83429152,0.00037288,120]
[426565772,1782595247000,500.0,0.00037288,120]
[426565775,1782595254000,576.61691299,0.00037288,120]
[426565774,1782595254000,614.4387859,0.00037288,120]
[426565777,1782595258000,500.0,0.00037288,120]
[426565776,1782595258000,500.0,0.00037288,120]
[426565778,1782595259000,528.6960116,0.00037288,120]
[426565779,1782595269000,524.24396906,0.00037288,120]
[426565780,1782595274000,500.0,0.00037288,120]
[426565783,1782595275000,500.0,0.00037288,120]
[426565782,1782595275000,500.0,0.00037288,120]
[426565781,1782595275000,500.0,0.00037288,120]
[426565787,1782595276000,505.06523029,0.00037288,120]
[426565786,1782595276000,500.0,0.00037288,120]
[426565785,1782595276000,500.0,0.00037288,120]
[426565784,1782595276000,500.0,0.00037288,120]
[426565790,1782595280000,521.27620249,0.00037288,120]
[426565789,1782595280000,500.0,0.00037288,120]
[426565788,1782595280000,500.0,0.00037288,120]
[426565791,1782595282000,519.10812183,0.00037288,120]
[426565793,1782595282000,500.0,0.00037288,120]
[426565792,1782595282000,529.95450059,0.00037288,120]
[426565794,1782595283000,630.50185777,0.00037288,120]
[426565795,1782595285000,506.70040879,0.00037288,120]
[426565796,1782595286000,506.57607495,0.00037288,120]
[426565797,1782595288000,521.85346237,0.00037288,120]
[426565798,1782595289000,500.0,0.00037288,120]
[426565800,1782595290000,602.07990629,0.00037288,120]
[426565799,1782595290000,500.0,0.00037288,120]
[426565801,1782595292000,500.0,0.00037288,120]
[426565803,1782595293000,500.0,0.00037288,120]
[426565802,1782595293000,500.0,0.00037288,120]
[426565804,1782595294000,523.16473834,0.00037288,120]
[426565805,1782595298000,515.90997116,0.00037288,120]
[426565808,1782595299000,500.0,0.00037288,120]
[426565807,1782595299000,500.0,0.00037288,120]
[426565806,1782595299000,500.0,0.00037288,120]
[426565812,1782595300000,646.25555002,0.00037288,120]
[426565811,1782595300000,575.94377011,0.00037288,120]
[426565810,1782595300000,500.0,0.00037288,120]
[426565809,1782595300000,500.0,0.00037288,120]
[426565814,1782595302000,500.0,0.00037288,120]
[426565813,1782595302000,545.76482409,0.00037288,120]
[426565815,1782595303000,500.0,0.00037288,120]
[426565816,1782595303000,500.0,0.00037288,120]
[426565817,1782595303000,500.0,0.00037288,120]
[426565818,1782595303000,562.2622149,0.00037288,120]
[426565819,1782595304000,500.0,0.00037288,120]
[426565822,1782595305000,500.0,0.00037288,120]
[426565821,1782595305000,500.0,0.00037288,120]
[426565820,1782595305000,500.0,0.00037288,120]
[426565825,1782595306000,500.0,0.00037288,120]
[426565824,1782595306000,500.0,0.00037288,120]
[426565823,1782595306000,500.0,0.00037288,120]
[426565827,1782595307000,626.33630967,0.00037288,120]
[426565826,1782595307000,500.0,0.00037288,120]
[426565829,1782595308000,500.0,0.00037288,120]
[426565828,1782595308000,526.9952293,0.00037288,120]
[426565830,1782595309000,592.94285696,0.00037288,120]
[426565833,1782595309000,500.0,0.00037288,120]
[426565832,1782595309000,500.0,0.00037288,120]
[426565831,1782595309000,500.0,0.00037288,120]
[426565836,1782595310000,527.29560252,0.00037288,120]
[426565835,1782595310000,500.0,0.00037288,120]
[426565834,1782595310000,518.76888428,0.00037288,120]
[426565837,1782595313000,515.79441808,0.00037288,120]
[426565840,1782595314000,500.0,0.00037288,120]
[426565839,1782595314000,500.0,0.00037288,120]
[426565838,1782595314000,570.94071707,0.00037288,120]
[426565841,1782595315000,562.96265776,0.00037288,120]
[426565843,1782595315000,540.00709528,0.00037288,120]
[426565842,1782595315000,500.0,0.00037288,120]
[426565844,1782595317000,500.0,0.00037288,120]
[426565846,1782595317000,500.0,0.00037288,120]
[426565845,1782595317000,500.0,0.00037288,120]
[426565851,1782595318000,500.0,0.00037288,120]
[426565850,1782595318000,500.0,0.00037288,120]
[426565849,1782595318000,500.0,0.00037288,120]
[426565848,1782595318000,544.51320452,0.00037288,120]
[426565847,1782595318000,500.0,0.00037288,120]
[426565852,1782595319000,422.54544666,0.00037288,120]
[426565853,1782595321000,500.0,0.00037288,120]
[426565854,1782595322000,500.0,0.00037288,120]
[426565856,1782595322000,533.48687855,0.00037288,120]
[426565855,1782595322000,518.11245969,0.00037288,120]
[426565857,1782595324000,500.0,0.00037288,120]
[426565860,1782595325000,500.0,0.00037288,120]
[426565859,1782595325000,500.0,0.00037288,120]
[426565858,1782595325000,500.0,0.00037288,120]
[426565861,1782595326000,169.80552941,0.00037288,120]
[426565862,1782595327000,575.0871672,0.00037288,120]
[426565863,1782595329000,567.63157553,0.00037288,120]
[426565864,1782595334000,516.00774644,0.00037288,120]
[426565865,1782595336000,500.0,0.00037288,120]
[426565866,1782595336000,500.0,0.00037288,120]
[426565867,1782595336000,500.0,0.00037288,120]
[426565868,1782595336000,565.19692406,0.00037288,120]
[426565870,1782595340000,500.0,0.00037288,120]
[426565869,1782595340000,500.0,0.00037288,120]
[426565871,1782595341000,500.0,0.00037288,120]
[426565872,1782595342000,521.19548009,0.00037288,120]
[426565873,1782595344000,538.75957324,0.00037288,120]
[426565875,1782595347000,500.0,0.00037288,120]
[426565874,1782595347000,567.35573167,0.00037288,120]
[426565877,1782595348000,410.912603,0.00037288,120]
[426565876,1782595348000,500.0,0.00037288,120]
[426565878,1782595350000,596.74403267,0.00037288,120]
[426565879,1782595355000,500.0,0.00037288,120]
[426565881,1782595356000,500.0,0.00037288,120]
[426565880,1782595356000,500.0,0.00037288,120]
[426565883,1782595356000,500.0,0.00037288,120]
[426565882,1782595356000,500.0,0.00037288,120]
[426565886,1782595357000,500.0,0.00037288,120]
[426565885,1782595357000,500.0,0.00037288,120]
[426565884,1782595357000,500.0,0.00037288,120]
[426565887,1782595358000,500.0,0.00037288,120]
[426565888,1782595359000,500.0,0.00037288,120]
[426565890,1782595359000,500.0,0.00037288,120]
[426565889,1782595359000,500.0,0.00037288,120]
[426565892,1782595360000,522.06240145,0.00037288,120]
[426565891,1782595360000,500.0,0.00037288,120]
[426565894,1782595363000,367.9306799,0.00037288,120]
[426565897,1782595364000,500.0,0.00037288,120]
[426565896,1782595364000,500.0,0.00037288,120]
[426565895,1782595364000,500.0,0.00037288,120]
[426565899,1782595365000,518.36207537,0.00037288,120]
[426565898,1782595365000,500.0,0.00037288,120]
[426565901,1782595367000,500.0,0.00037288,120]
[426565900,1782595367000,500.0,0.00037288,120]
[426565903,1782595368000,500.0,0.00037288,120]
[426565902,1782595368000,500.0,0.00037288,120]
[426565904,1782595369000,500.0,0.00037288,120]
[426565905,1782595369000,500.0,0.00037288,120]
[426565907,1782595373000,500.0,0.00037288,120]
[426565906,1782595373000,500.0,0.00037288,120]
[426565909,1782595374000,500.0,0.00037288,120]
[426565908,1782595374000,500.0,0.00037288,120]
[426565912,1782595375000,228.00106443,0.00037288,120]
[426565911,1782595375000,500.0,0.00037288,120]
[426565910,1782595375000,500.0,0.00037288,120]
[426565913,1782595377000,500.0,0.00037288,120]
[426565914,1782595378000,597.48735629,0.00037288,120]
[426565916,1782595379000,500.0,0.00037288,120]
[426565917,1782595380000,500.0,0.00037288,120]
[426565920,1782595380000,500.0,0.00037288,120]
[426565919,1782595380000,500.0,0.00037288,120]
[426565918,1782595380000,637.63857521,0.00037288,120]
[426565922,1782595381000,517.84305679,0.00037288,120]
[426565921,1782595381000,500.0,0.00037288,120]
[426565923,1782595383000,500.0,0.00037288,120]
[426565926,1782595384000,500.0,0.00037288,120]
[426565925,1782595384000,500.0,0.00037288,120]
[426565924,1782595384000,500.0,0.00037288,120]
[426565929,1782595385000,500.0,0.00037288,120]
[426565927,1782595385000,518.32966612,0.00037288,120]
[426565930,1782595386000,500.0,0.00037288,120]
[426565931,1782595386000,500.0,0.00037288,120]
[426565932,1782595386000,500.0,0.00037288,120]
[426565935,1782595387000,500.0,0.00037288,120]
[426565934,1782595387000,500.0,0.00037288,120]
[426565933,1782595387000,500.0,0.00037288,120]
[426565938,1782595388000,500.0,0.00037288,120]
[426565937,1782595388000,500.0,0.00037288,120]
[426565936,1782595388000,500.0,0.00037288,120]
[426565939,1782595389000,500.0,0.00037288,120]
[426565940,1782595389000,583.99794815,0.00037288,120]
[426565941,1782595389000,500.0,0.00037288,120]
[426565942,1782595389000,500.0,0.00037288,120]
[426565943,1782595389000,500.0,0.00037288,120]
[426565945,1782595390000,500.0,0.00037288,120]
[426565946,1782595390000,500.0,0.00037288,120]
[426565944,1782595390000,500.0,0.00037288,120]
[426565947,1782595391000,500.0,0.00037288,120]
[426565950,1782595392000,500.0,0.00037288,120]
[426565949,1782595392000,500.0,0.00037288,120]
[426565948,1782595392000,500.0,0.00037288,120]
[426565953,1782595393000,500.0,0.00037288,120]
[426565952,1782595393000,583.01274043,0.00037288,120]
[426565951,1782595393000,500.0,0.00037288,120]
[426565954,1782595394000,500.0,0.00037288,120]
[426565956,1782595394000,371.65,0.00037288,120]
[426565955,1782595394000,500.0,0.00037288,120]
[426565957,1782595395000,520.06937054,0.00037288,120]
[426565958,1782595395000,500.0,0.00037288,120]
[426565961,1782595396000,584.47926171,0.00037288,120]
[426565960,1782595396000,500.0,0.00037288,120]
[426565959,1782595396000,500.0,0.00037288,120]
[426565962,1782595397000,500.0,0.00037288,120]
[426565963,1782595398000,341.98060998,0.00037288,120]
[426565966,1782595404000,500.0,0.00037288,120]
[426565965,1782595404000,500.0,0.00037288,120]
[426565967,1782595405000,500.0,0.00037288,120]
[426565968,1782595405000,500.0,0.00037288,120]
[426565969,1782595405000,500.0,0.00037288,120]
[426565970,1782595411000,560.57920623,0.00037288,120]
[426565971,1782595421000,500.0,0.00037288,120]
[426565972,1782595421000,500.0,0.00037288,120]
[426565974,1782595422000,500.0,0.00037288,120]
[426565973,1782595422000,500.0,0.00037288,120]
[426565975,1782595423000,508.26727995,0.00037288,120]
[426565979,1782595425000,520.25815905,0.00037288,120]
[426565978,1782595425000,500.0,0.00037288,120]
[426565977,1782595425000,500.0,0.00037288,120]
[426565976,1782595425000,500.0,0.00037288,120]
[426565980,1782595428000,500.0,0.00037288,120]
[426565981,1782595428000,560.34567874,0.00037288,120]
[426565983,1782595430000,168.8381678,0.00037288,120]
[426565982,1782595430000,500.0,0.00037288,120]
[426565984,1782595434000,488.04055862,0.00037288,120]
[426565988,1782595437000,708.33,0.00037288,120]
[426565987,1782595437000,708.33,0.00037288,120]
[426565986,1782595437000,708.33,0.00037288,120]
[426565985,1782595437000,504.60295621,0.00037288,120]
[426565989,1782595438000,708.33,0.00037288,120]
[426565990,1782595439000,708.33,0.00037288,120]
[426565991,1782595439000,500.0,0.00037288,120]
[426565993,1782595439000,519.36316611,0.00037288,120]
[426565992,1782595439000,708.33,0.00037288,120]
[426565994,1782595440000,708.33,0.00037288,120]
[426565995,1782595440000,708.33,0.00037288,120]
[426565999,1782595441000,708.33,0.00037288,120]
[426565998,1782595441000,708.33,0.00037288,120]
[426565997,1782595441000,708.33,0.00037288,120]
[426565996,1782595441000,708.33,0.00037288,120]
[426566000,1782595442000,500.0,0.00037288,120]
[426566003,1782595442000,708.33,0.00037288,120]
[426566001,1782595442000,708.33,0.00037288,120]
[426566005,1782595442000,708.33,0.00037288,120]
[426566006,1782595442000,500.0,0.00037288,120]
[426566004,1782595442000,500.0,0.00037288,120]
[426566002,1782595442000,500.0,0.00037288,120]
[426566010,1782595443000,708.33,0.00037288,120]
[426566009,1782595443000,708.33,0.00037288,120]
[426566008,1782595443000,351.85705489,0.00037288,120]
[426566007,1782595443000,708.33,0.00037288,120]
[426566013,1782595444000,708.33,0.00037288,120]
[426566012,1782595444000,708.33,0.00037288,120]
[426566011,1782595444000,708.33,0.00037288,120]
[426566014,1782595445000,708.33,0.00037288,120]
[426566015,1782595445000,500.0,0.00037288,120]
[426566017,1782595445000,520.51648908,0.00037288,120]
[426566016,1782595445000,708.33,0.00037288,120]
[426566018,1782595446000,708.41,0.00037288,120]
[426566021,1782595447000,500.0,0.00037288,120]
[426566020,1782595447000,327.45074073,0.00014712,2]
[426566019,1782595447000,500.0,0.00037288,120]
[426566027,1782595448000,500.0,0.00037288,120]
[426566026,1782595448000,500.0,0.00037288,120]
[426566025,1782595448000,523.4507286,0.00037288,120]
[426566024,1782595448000,500.0,0.00037288,120]
[426566023,1782595448000,500.0,0.00037288,120]
[426566022,1782595448000,500.0,0.00037288,120]
[426566028,1782595449000,520.15907507,0.00037288,120]
[426566029,1782595452000,1509.15,0.00029976,120]
[426566033,1782595465000,500.0,0.00037288,120]
[426566032,1782595465000,500.0,0.00037288,120]
[426566031,1782595465000,500.0,0.00037288,120]
[426566037,1782595466000,500.0,0.00037288,120]
[426566036,1782595466000,500.0,0.00037288,120]
[426566035,1782595466000,500.0,0.00037288,120]
[426566034,1782595466000,500.0,0.00037288,120]
[426566038,1782595467000,338.95842965,0.00037288,120]
[426566039,1782595487000,500.0,0.00037288,120]
[426566040,1782595488000,500.0,0.00037288,120]
[426566042,1782595488000,500.0,0.00037288,120]
[426566041,1782595488000,500.0,0.00037288,120]
[426566043,1782595489000,225.33085311,0.00037288,120]
[426566044,1782595498000,500.0,0.00037288,120]
[426566046,1782595515000,500.0,0.00037288,120]
[426566045,1782595515000,500.0,0.00037288,120]
[426566050,1782595516000,500.0,0.00037288,120]
[426566049,1782595516000,500.0,0.00037288,120]
[426566048,1782595516000,500.0,0.00037288,120]
[426566047,1782595516000,500.0,0.00037288,120]
[426566052,1782595517000,500.0,0.00037288,120]
[426566051,1782595517000,500.0,0.00037288,120]
[426566053,1782595518000,500.0,0.00037288,120]
[426566054,1782595518000,500.0,0.00037288,120]
[426566056,1782595518000,500.0,0.00037288,120]
[426566057,1782595518000,460.75289896,0.00037288,120]
[426566055,1782595518000,500.0,0.00037288,120]
[426566058,1782595523000,601.13144822,0.00037288,120]
[426566059,1782595528000,568.64305809,0.00037288,120]
[426566060,1782595543000,500.0,0.00037288,120]
[426566061,1782595546000,555.53445033,0.00037288,120]
[426566063,1782595547000,500.0,0.00037288,120]
[426566062,1782595547000,500.0,0.00037288,120]
[426566064,1782595548000,500.0,0.00037288,120]
[426566065,1782595549000,557.67101088,0.00037288,120]
[426566067,1782595549000,-499.19675691,0.00014824,2]
[426566066,1782595549000,-22.54925927,0.00014712,2]
[426566068,1782595551000,500.0,0.00037288,120]
[426566069,1782595551000,500.0,0.00037288,120]
[426566072,1782595552000,627.02095115,0.00037288,120]
[426566071,1782595552000,500.0,0.00037288,120]
[426566070,1782595552000,500.0,0.00037288,120]
[426566073,1782595556000,610.26589421,0.00037288,120]
[426566074,1782595557000,547.24088093,0.00037288,120]
[426566077,1782595617000,561.63709601,0.00037288,120]
[426566079,1782595634000,-991.58608616,0.00014824,2]
[426566078,1782595634000,-163.83,0.00014824,2]
[426566080,1782595654000,-379.92687793,0.00014824,2]
[426566081,1782595654000,-43.95785669,0.00014831,2]
[426566082,1782595655000,521.6648035,0.00037288,120]
[426566083,1782595662000,500.0,0.00037288,120]
[426566085,1782595663000,500.0,0.00037288,120]
[426566084,1782595663000,500.0,0.00037288,120]
[426566089,1782595664000,500.0,0.00037288,120]
[426566088,1782595664000,500.0,0.00037288,120]
[426566087,1782595664000,500.0,0.00037288,120]
[426566086,1782595664000,500.0,0.00037288,120]
[426566090,1782595665000,519.42220842,0.00037288,120]
[426566092,1782595668000,478.44185469,0.00037288,120]
[426566091,1782595668000,500.0,0.00037288,120]
[426566093,1782595673000,500.0,0.00037288,120]
[426566094,1782595674000,514.9658661,0.00037288,120]